bitfinex-derivatives/quotes_BNBF0:USTF0_20260110
["timestamp","ask_amount","ask_price","bid_price","bid_amount"]
[1768030643715,0.19157194,908.98,907.84,0.69326448]
[1768030643917,0.19157194,908.98,907.85,0.69326448]
[1768030644215,0.19157194,908.98,907.86,0.69326448]
[1768030644417,0.19157194,908.98,907.87,0.69326448]
[1768030644615,0.19157194,908.98,907.88,0.69326448]
[1768030644816,0.19157194,908.98,907.89,0.69326448]
[1768030645014,0.19157194,908.98,907.76,1.419]
[1768030645219,0.19157194,908.98,907.77,0.69325874]
[1768030645415,0.19157194,908.98,907.78,0.69325874]
[1768030645620,0.19157194,908.98,907.79,0.69325874]
[1768030645820,0.19157194,908.98,907.8,0.69325874]
[1768030646020,0.19157194,908.98,907.81,0.69325874]
[1768030646219,0.19157194,908.98,907.82,0.69325874]
[1768030646415,0.19157194,908.98,907.83,0.69325874]
[1768030646621,0.19157194,908.98,907.84,0.69325874]
[1768030646820,0.19157194,908.98,907.85,0.69325874]
[1768030647117,0.19157194,908.98,907.86,0.69325874]
[1768030647418,0.19157194,908.98,907.87,0.69325874]
[1768030647616,0.19157194,908.98,907.88,0.69325874]
[1768030647920,0.19157194,908.98,907.76,1.419]
[1768030648120,0.19157194,908.98,907.77,0.69325579]
[1768030648320,0.19157194,908.98,907.78,0.69325579]
[1768030648520,0.19157194,908.98,907.79,0.69325579]
[1768030648720,0.19157194,908.98,907.8,0.69325579]
[1768030648917,0.19157194,908.98,907.81,0.69325579]
[1768030649121,0.19157194,908.98,907.82,0.69325579]
[1768030649422,0.19157194,908.98,907.83,0.69325579]
[1768030649620,0.19157194,908.98,907.84,0.69325579]
[1768030649922,0.19157194,908.98,907.85,0.69325579]
[1768030650123,0.19157194,908.98,907.86,0.69325579]
[1768030650320,0.19157194,908.98,907.87,0.69325579]
[1768030650623,0.19157194,908.98,907.88,0.69325579]
[1768030650924,0.19157194,908.98,907.76,1.419]
[1768030651124,0.19157194,908.98,907.77,0.69325635]
[1768030651324,0.19157194,908.98,907.78,0.69325635]
[1768030651523,0.19157194,908.98,907.79,0.69325635]
[1768030651725,0.19157194,908.98,907.8,0.69325635]
[1768030651922,0.19157194,908.98,907.81,0.69325635]
[1768030652122,0.19157194,908.98,907.82,0.69325635]
[1768030652322,0.19157194,908.98,907.83,0.69325635]
[1768030652525,0.19157194,908.98,907.84,0.69325635]
[1768030652723,0.19157194,908.98,907.85,0.69325635]
[1768030652927,0.19157194,908.98,907.86,0.69325635]
[1768030653127,0.19157194,908.98,907.87,0.69325635]
[1768030653327,0.19157194,908.98,907.88,0.69325635]
[1768030653525,0.19157194,908.98,907.76,1.419]
[1768030653828,0.19157194,908.98,907.77,0.6932571]
[1768030654025,0.19157194,908.98,907.78,0.6932571]
[1768030654225,0.19157194,908.98,907.79,0.6932571]
[1768030654431,0.19157194,908.98,907.8,0.6932571]
[1768030654627,0.19157194,908.98,907.81,0.6932571]
[1768030654829,0.19157194,908.98,907.82,0.6932571]
[1768030655126,0.19157194,908.98,907.83,0.6932571]
[1768030655326,0.19157194,908.98,907.84,0.6932571]
[1768030655527,0.19157194,908.98,907.85,0.6932571]
[1768030655725,0.19157194,908.98,907.86,0.6932571]
[1768030655929,0.19157194,908.98,907.87,0.6932571]
[1768030656126,0.19157194,908.98,907.88,0.6932571]
[1768030656427,0.19157194,908.98,907.89,0.6932571]
[1768030656626,0.19157194,908.98,907.6,0.8259945]
[1768030656830,0.19157194,908.98,907.61,0.69326103]
[1768030657127,0.19157194,908.98,907.62,0.69326103]
[1768030657330,0.19157194,908.98,907.63,0.69326103]
[1768030657528,0.19157194,908.98,907.64,0.69326103]
[1768030657731,0.19157194,908.98,907.65,0.69326103]
[1768030658030,0.19157194,908.98,907.66,0.69326103]
[1768030658233,0.19157194,908.98,907.67,0.69326103]
[1768030658533,0.19157194,908.98,907.68,0.69326103]
[1768030658733,0.19157194,908.98,907.69,0.69326103]
[1768030658930,0.19157194,908.98,907.7,0.69326103]
[1768030659131,0.19157194,908.98,907.71,0.69326103]
[1768030659331,0.19157194,908.98,907.72,0.69326103]
[1768030659530,0.19157194,908.98,907.73,0.69326103]
[1768030659737,0.19157194,908.98,907.74,0.69326103]
[1768030659934,0.19157194,908.98,907.75,0.69326103]
[1768030660238,0.19157194,908.98,907.76,0.69326103]
[1768030660439,0.19157194,908.98,907.77,0.69326103]
[1768030660735,0.19157194,908.98,907.78,0.69326103]
[1768030660939,0.19157194,908.98,907.79,0.69326103]
[1768030661234,0.19157194,908.98,907.8,0.69326103]
[1768030661435,0.19157194,908.98,907.81,0.69326103]
[1768030661639,0.19157194,908.98,907.82,0.69326103]
[1768030661838,0.19157194,908.98,907.83,0.69326103]
[1768030662037,0.19157194,908.98,907.84,0.69326103]
[1768030662236,0.19157194,908.98,907.85,0.69326103]
[1768030662439,0.19157194,908.98,907.86,0.69326103]
[1768030662639,0.19157194,908.98,907.87,0.69326103]
[1768030662939,0.19157194,908.98,907.88,0.69326103]
[1768030663141,0.19157194,908.98,907.89,0.69326103]
[1768030663337,0.19157194,908.98,907.67,1.291]
[1768030663540,0.19157194,908.98,907.68,0.69324248]
[1768030663740,0.19157194,908.98,907.69,0.69324248]
[1768030663939,0.19157194,908.98,907.7,0.69324248]
[1768030664136,0.19157194,908.98,907.71,0.69324248]
[1768030664338,0.19157194,908.98,907.72,0.69324248]
[1768030664538,0.19157194,908.98,907.73,0.69324248]
[1768030664736,0.19157194,908.98,907.74,0.69324248]
[1768030664938,0.19157194,908.98,907.75,0.69324248]
[1768030665138,0.19157194,908.98,907.76,0.69324248]
[1768030665344,0.19157194,908.98,907.77,0.69324248]
[1768030665543,0.19157194,908.98,907.78,0.69324248]
[1768030665840,0.19157194,908.98,907.79,0.69324248]
[1768030666044,0.19157194,908.98,907.8,0.69324248]
[1768030666244,0.19157194,908.98,907.81,0.69324248]
[1768030666445,0.19157194,908.98,907.82,0.69324248]
[1768030666644,0.19157194,908.98,907.83,0.69324248]
[1768030666844,0.19157194,908.98,907.84,0.69324248]
[1768030667044,0.19157194,908.98,907.85,0.69324248]
[1768030667244,0.19157194,908.98,907.86,0.69324248]
[1768030667444,0.19157194,908.98,907.87,0.69324248]
[1768030667645,0.19157194,908.98,907.88,0.69324248]
[1768030667845,0.19157194,908.98,907.89,0.69324248]
[1768030668044,0.19157194,908.98,907.67,1.291]
[1768030668045,0.19157194,908.98,907.9,0.69324248]
[1768030668245,0.19157194,908.98,907.67,1.291]
[1768030668448,0.19157194,908.98,907.68,0.69327153]
[1768030668646,0.19157194,908.98,907.67,1.291]
[1768030668647,0.19157194,908.98,907.69,0.69327153]
[1768030668944,0.19157194,908.98,907.7,0.69327153]
[1768030669146,0.19157194,908.98,907.71,0.69327153]
[1768030669447,0.19157194,908.98,907.72,0.69327153]
[1768030669646,0.19157194,908.98,907.73,0.69327153]
[1768030669843,0.19157194,908.98,907.74,0.69327153]
[1768030670044,0.19157194,908.98,907.75,0.69327153]
[1768030670247,0.19157194,908.98,907.76,0.69327153]
[1768030670544,0.19157194,908.98,907.77,0.69327153]
[1768030670745,0.19157194,908.98,907.78,0.69327153]
[1768030670944,0.19157194,908.98,907.79,0.69327153]
[1768030671144,0.19157194,908.98,907.8,0.69327153]
[1768030671346,0.19157194,908.98,907.81,0.69327153]
[1768030671546,0.19157194,908.98,907.82,0.69327153]
[1768030671745,0.19157194,908.98,907.83,0.69327153]
[1768030672049,0.19157194,908.98,907.84,0.69327153]
[1768030672249,0.19157194,908.98,907.85,0.69327153]
[1768030672448,0.19157194,908.98,907.86,0.69327153]
[1768030672644,0.19157194,908.98,907.87,0.69327153]
[1768030672844,0.19157194,908.98,907.88,0.69327153]
[1768030673046,0.19157194,908.98,907.89,0.69327153]
[1768030673249,0.19157194,908.98,907.9,0.69327153]
[1768030673447,0.19157194,908.98,907.67,1.291]
[1768030673647,0.19157194,908.98,907.68,0.69307359]
[1768030673850,0.19157194,908.98,907.69,0.69307359]
[1768030674047,0.19157194,908.98,907.7,0.69307359]
[1768030674252,0.19157194,908.98,907.71,0.69307359]
[1768030674549,0.19157194,908.98,907.72,0.69307359]
[1768030674748,0.19157194,908.98,907.73,0.69307359]
[1768030674951,0.19157194,908.98,907.74,0.69307359]
[1768030675151,0.19157194,908.98,907.75,0.69307359]
[1768030675348,0.19157194,908.98,907.76,0.69307359]
[1768030675548,0.19157194,908.98,907.77,0.69307359]
[1768030675752,0.19157194,908.98,907.78,0.69307359]
[1768030676049,0.19157194,908.98,907.79,0.69307359]
[1768030676249,0.19157194,908.98,907.8,0.69307359]
[1768030676548,0.19157194,908.98,907.81,0.69307359]
[1768030676752,0.19157194,908.98,907.82,0.69307359]
[1768030676948,0.19157194,908.98,907.83,0.69307359]
[1768030677249,0.19157194,908.98,907.84,0.69307359]
[1768030677448,0.19157194,908.98,907.85,0.69307359]
[1768030677649,0.19157194,908.98,907.86,0.69307359]
[1768030677950,0.19157194,908.98,907.87,0.69307359]
[1768030678150,0.19157194,908.98,907.88,0.69307359]
[1768030678350,0.19157194,908.98,907.89,0.69307359]
[1768030678554,0.19157194,908.98,907.9,0.69307359]
[1768030678852,0.19157194,908.98,907.67,1.291]
[1768030679050,0.19157194,908.98,907.68,0.6930744]
[1768030679349,0.19157194,908.98,907.69,0.6930744]
[1768030679550,0.19157194,908.98,907.7,0.6930744]
[1768030679852,0.19157194,908.98,907.71,0.6930744]
[1768030680050,0.19157194,908.98,907.72,0.6930744]
[1768030680255,0.19157194,908.98,907.73,0.6930744]
[1768030680456,0.19157194,908.98,907.74,0.6930744]
[1768030680655,0.19157194,908.98,907.75,0.6930744]
[1768030680856,0.19157194,908.98,907.76,0.6930744]
[1768030681056,0.19157194,908.98,907.77,0.6930744]
[1768030681357,0.19157194,908.98,907.78,0.6930744]
[1768030681556,0.19157194,908.98,907.79,0.6930744]
[1768030681758,0.19157194,908.98,907.8,0.6930744]
[1768030681956,0.19157194,908.98,907.81,0.6930744]
[1768030682156,0.19157194,908.98,907.82,0.6930744]
[1768030682354,0.19157194,908.98,907.83,0.6930744]
[1768030682557,0.19157194,908.98,907.84,0.6930744]
[1768030682755,0.19157194,908.98,907.85,0.6930744]
[1768030682955,0.19157194,908.98,907.86,0.6930744]
[1768030683156,0.19157194,908.98,907.87,0.6930744]
[1768030683355,0.19157194,908.98,907.88,0.6930744]
[1768030683556,0.19157194,908.98,907.89,0.6930744]
[1768030683760,0.19157194,908.98,907.9,0.6930744]
[1768030683959,0.19157194,908.98,907.67,1.291]
[1768030684161,0.19157194,908.98,907.68,0.69307554]
[1768030684461,0.19157194,908.98,907.69,0.69307554]
[1768030684659,0.19157194,908.98,907.7,0.69307554]
[1768030684862,0.19157194,908.98,907.71,0.69307554]
[1768030685059,0.19157194,908.98,907.72,0.69307554]
[1768030685258,0.19157194,908.98,907.73,0.69307554]
[1768030685558,0.19157194,908.98,907.74,0.69307554]
[1768030685763,0.19157194,908.98,907.75,0.69307554]
[1768030685961,0.19157194,908.98,907.76,0.69307554]
[1768030686161,0.19157194,908.98,907.77,0.69307554]
[1768030686361,0.19157194,908.98,907.78,0.69307554]
[1768030686661,0.19157194,908.98,907.79,0.69307554]
[1768030686862,0.19157194,908.98,907.8,0.69307554]
[1768030687065,0.19157194,908.98,907.81,0.69307554]
[1768030687263,0.19157194,908.98,907.82,0.69307554]
[1768030687462,0.19157194,908.98,907.83,0.69307554]
[1768030687661,0.19157194,908.98,907.84,0.69307554]
[1768030687865,0.19157194,908.98,907.85,0.69307554]
[1768030688063,0.19157194,908.98,907.86,0.69307554]
[1768030688363,0.19157194,908.98,907.87,0.69307554]
[1768030688566,0.19157194,908.98,907.67,1.291]
[1768030688863,0.19157194,908.98,907.68,0.69294935]
[1768030689164,0.19157194,908.98,907.69,0.69294935]
[1768030689367,0.19157194,908.98,907.7,0.69294935]
[1768030689562,0.19157194,908.98,907.71,0.69294935]
[1768030689763,0.19157194,908.98,907.72,0.69294935]
[1768030689966,0.19157194,908.98,907.73,0.69294935]
[1768030690167,0.19157194,908.98,907.74,0.69294935]
[1768030690366,0.19157194,908.98,907.75,0.69294935]
[1768030690663,0.19157194,908.98,907.67,1.291]
[1768030690863,0.19157194,908.98,907.68,0.69309948]
[1768030691162,0.19157194,908.98,907.69,0.69309948]
[1768030691367,0.19157194,908.98,907.7,0.69309948]
[1768030691566,0.19157194,908.98,907.71,0.69309948]
[1768030691764,0.19157194,908.98,907.72,0.69309948]
[1768030691963,0.19157194,908.98,907.73,0.69309948]
[1768030692164,0.19157194,908.98,907.67,1.291]
[1768030692463,0.19157194,908.98,907.68,0.69274573]
[1768030692664,0.19157194,908.98,907.69,0.69274573]
[1768030692863,0.19157194,908.98,907.7,0.69274573]
[1768030693164,0.19157194,908.98,907.71,0.69274573]
[1768030693364,0.19157194,908.98,907.72,0.69274573]
[1768030693565,0.19157194,908.98,907.67,1.291]
[1768030693769,0.19157194,908.98,907.68,0.69237286]
[1768030693966,0.19157194,908.98,907.69,0.69237286]
[1768030694170,0.19157194,908.98,907.7,0.69237286]
[1768030694369,0.19157194,908.98,907.71,0.69237286]
[1768030694570,0.19157194,908.98,907.67,1.291]
[1768030694770,0.19157194,908.98,907.68,0.69226419]
[1768030695071,0.19157194,908.98,907.69,0.69226419]
[1768030695370,0.19157194,908.98,907.7,0.69226419]
[1768030695566,0.19157194,908.98,907.71,0.69217291]
[1768030695765,0.19157194,908.98,907.67,1.291]
[1768030695967,0.19157194,908.98,907.68,0.69217304]
[1768030696166,0.19157194,908.98,907.69,0.69217304]
[1768030696371,0.19157194,908.98,907.7,0.69217304]
[1768030696667,0.19157194,908.98,907.71,0.69217304]
[1768030696971,0.19157194,908.98,907.67,1.291]
[1768030697170,0.19157194,908.98,907.68,0.69209411]
[1768030697371,0.19157194,908.98,907.69,0.69209411]
[1768030697671,0.19157194,908.98,907.7,0.69209411]
[1768030697870,0.19157194,908.98,907.67,1.291]
[1768030698068,0.19157194,908.98,907.68,0.69202496]
[1768030698267,0.19157194,908.98,907.69,0.69202496]
[1768030698469,0.19157194,908.98,907.7,0.69202496]
[1768030698668,0.19157194,908.98,907.67,1.291]
[1768030698869,0.19157194,908.98,907.68,0.69196403]
[1768030699067,0.19157194,908.98,907.69,0.69196403]
[1768030699266,0.19157194,908.98,907.7,0.69196403]
[1768030699465,0.19157194,908.98,907.67,1.291]
[1768030699667,0.19157194,908.98,907.68,0.6919096]
[1768030699870,0.19157194,908.98,907.69,0.6919096]
[1768030700071,0.19157194,908.98,907.7,0.6919096]
[1768030700268,0.19157194,908.98,907.67,1.291]
[1768030700468,0.19157194,908.98,907.68,0.691862]
[1768030700673,0.19157194,908.98,907.69,0.691862]
[1768030700871,0.19157194,908.98,907.67,1.291]
[1768030701073,0.19157194,908.98,907.68,0.69186179]
[1768030701270,0.19157194,908.98,907.69,0.69186179]
[1768030701571,0.19157194,908.98,907.67,1.291]
[1768030701873,0.19157194,908.98,907.68,0.6915225]
[1768030702071,0.19157194,908.98,907.69,0.6915225]
[1768030702270,0.19157194,908.98,907.67,1.291]
[1768030702475,0.19157194,908.98,907.68,0.69148523]
[1768030702674,0.19157194,908.98,907.69,0.69148523]
[1768030702872,0.19157194,908.98,907.67,1.291]
[1768030703075,0.19157194,908.98,907.68,0.69148523]
[1768030703275,0.19157194,908.98,907.69,0.69148523]
[1768030703476,0.19157194,908.98,907.67,1.291]
[1768030703776,0.19157194,908.98,907.68,0.69145257]
[1768030704076,0.19157194,908.98,907.69,0.69145257]
[1768030704375,0.19157194,908.98,907.67,1.291]
[1768030704572,0.19157194,908.98,907.68,0.69142398]
[1768030704773,0.19157194,908.98,907.69,0.69142398]
[1768030704972,0.19157194,908.98,907.67,1.291]
[1768030705177,0.19157194,908.98,907.68,0.69142377]
[1768030705474,0.19157194,908.98,907.67,1.291]
[1768030705672,0.19157194,908.98,907.68,0.69139927]
[1768030705872,0.19157194,908.98,907.69,0.69139927]
[1768030706077,0.19157194,908.98,907.67,1.291]
[1768030706273,0.19157194,908.98,907.68,0.69139927]
[1768030706479,0.19157194,908.98,907.67,1.291]
[1768030706777,0.19157194,908.98,907.68,0.69137857]
[1768030706978,0.19157194,908.98,907.67,1.291]
[1768030710578,0.19157194,908.98,907.36,0.8259945]
[1768030710877,0.19157194,908.98,907.37,0.69131737]
[1768030711080,0.19157194,908.98,907.38,0.69131737]
[1768030711281,0.19157194,908.98,907.39,0.69131737]
[1768030711482,0.19157194,908.98,907.4,0.69131737]
[1768030711682,0.19157194,908.98,907.41,0.69131737]
[1768030711877,0.19157194,908.98,907.42,0.69131737]
[1768030712179,0.19157194,908.98,907.43,0.69131737]
[1768030712378,0.19157194,908.98,907.44,0.69131737]
[1768030712580,0.19157194,908.98,907.45,0.69131737]
[1768030712780,0.19157194,908.98,907.46,0.69131737]
[1768030712981,0.19157194,908.98,907.47,0.69131737]
[1768030713180,0.19157194,908.98,907.48,0.69131737]
[1768030713382,0.19157194,908.98,907.49,0.69131737]
[1768030713583,0.19157194,908.98,907.5,0.69131737]
[1768030713783,0.19157194,908.98,907.51,0.69131737]
[1768030713982,0.19157194,908.98,907.52,0.69131737]
[1768030714180,0.19157194,908.98,907.53,0.69131737]
[1768030714384,0.19157194,908.98,907.54,0.69131737]
[1768030714581,0.19157194,908.98,907.55,0.69131737]
[1768030714882,0.19157194,908.98,907.56,0.69131737]
[1768030715081,0.19157194,908.98,907.57,0.69131737]
[1768030715282,0.19157194,908.98,907.58,0.69131737]
[1768030715481,0.19157194,908.98,907.59,0.69131737]
[1768030715686,0.19157194,908.98,907.6,0.69131737]
[1768030715882,0.19157194,908.98,907.61,0.69131737]
[1768030716087,0.19157194,908.98,907.62,0.69131737]
[1768030716386,0.19157194,908.98,907.63,0.69131737]
[1768030716583,0.19157194,908.98,907.64,0.69131737]
[1768030716783,0.19157194,908.98,907.65,0.69131737]
[1768030716986,0.19157194,908.98,907.53,1.387]
[1768030717184,0.19157194,908.98,907.54,0.69128333]
[1768030717384,0.19157194,908.98,907.55,0.69128333]
[1768030717684,0.19157194,908.98,907.56,0.69128333]
[1768030717884,0.19157194,908.98,907.57,0.69128333]
[1768030718088,0.19157194,908.98,907.58,0.69128333]
[1768030718383,0.19157194,908.98,907.59,0.69128333]
[1768030718584,0.19157194,908.98,907.6,0.69128333]
[1768030718787,0.19157194,908.98,907.61,0.69128333]
[1768030718985,0.19157194,908.98,907.62,0.69128333]
[1768030719184,0.19157194,908.98,907.63,0.69128333]
[1768030719387,0.19157194,908.98,907.64,0.69128333]
[1768030719689,0.19157194,908.98,907.65,0.69128333]
[1768030719886,0.19157194,908.98,907.53,1.387]
[1768030720086,0.19157194,908.98,907.54,0.69160739]
[1768030720387,0.19157194,908.98,907.55,0.69160739]
[1768030720591,0.19157194,908.98,907.56,0.69160739]
[1768030720886,0.19157194,908.98,907.57,0.69160739]
[1768030721090,0.19157194,908.98,907.58,0.69160739]
[1768030721288,0.19157194,908.98,907.59,0.69160739]
[1768030721491,0.19157194,908.98,907.6,0.69160739]
[1768030721689,0.19157194,908.98,907.61,0.69160739]
[1768030721892,0.19157194,908.98,907.62,0.69160739]
[1768030722188,0.19157194,908.98,907.63,0.69160739]
[1768030722392,0.19157194,908.98,907.64,0.69160739]
[1768030722688,0.19157194,908.98,907.65,0.69160739]
[1768030722892,0.19157194,908.98,907.66,0.69160739]
[1768030723190,0.19157194,908.98,907.53,1.387]
[1768030723391,0.19157194,908.98,907.54,0.69162994]
[1768030723588,0.19157194,908.98,907.55,0.69162994]
[1768030723792,0.19157194,908.98,907.56,0.69162994]
[1768030723987,0.19157194,908.98,907.57,0.69162994]
[1768030724290,0.19157194,908.98,907.58,0.69162994]
[1768030724488,0.19157194,908.98,907.59,0.69162994]
[1768030724689,0.19157194,908.98,907.6,0.69162994]
[1768030724890,0.19157194,908.98,907.61,0.69162994]
[1768030725090,0.19157194,908.98,907.62,0.69162994]
[1768030725292,0.19157194,908.98,907.63,0.69162994]
[1768030725491,0.19157194,908.98,907.64,0.69162994]
[1768030725790,0.19157194,908.98,907.65,0.69162994]
[1768030725992,0.19157194,908.98,907.53,1.387]
[1768030725993,0.19157194,908.98,907.66,0.69162994]
[1768030726192,0.19157194,908.98,907.53,1.387]
[1768030726392,0.19157194,908.98,907.54,0.6916823]
[1768030726590,0.19157194,908.98,907.55,0.6916823]
[1768030726795,0.19157194,908.98,907.56,0.6916823]
[1768030726995,0.19157194,908.98,907.57,0.6916823]
[1768030727192,0.19157194,908.98,907.58,0.6916823]
[1768030727392,0.19157194,908.98,907.59,0.6916823]
[1768030727593,0.19157194,908.98,907.6,0.6916823]
[1768030727791,0.19157194,908.98,907.61,0.6916823]
[1768030728096,0.19157194,908.98,907.62,0.6916823]
[1768030728393,0.19157194,908.98,907.63,0.6916823]
[1768030728696,0.19157194,908.98,907.53,1.387]
[1768030728895,0.19157194,908.98,907.54,0.69186071]
[1768030729094,0.19157194,908.98,907.55,0.69186071]
[1768030729297,0.19157194,908.98,907.56,0.69186071]
[1768030729493,0.19157194,908.98,907.57,0.69186071]
[1768030729694,0.19157194,908.98,907.58,0.69186071]
[1768030729892,0.19157194,908.98,907.59,0.69186071]
[1768030730097,0.19157194,908.98,907.6,0.69186071]
[1768030730397,0.19157194,908.98,907.61,0.69186071]
[1768030730697,0.19157194,908.98,907.62,0.69186071]
[1768030730998,0.19157194,908.98,907.63,0.69186071]
[1768030731194,0.19157194,908.98,907.64,0.69186071]
[1768030731497,0.19157194,908.98,907.65,0.69206638]
[1768030731696,0.19157194,908.98,907.53,1.387]
[1768030731897,0.19157194,908.98,907.54,0.69206638]
[1768030732193,0.19157194,908.98,907.55,0.69206638]
[1768030732399,0.19157194,908.98,907.56,0.69206638]
[1768030732597,0.19157194,908.98,907.57,0.69206638]
[1768030732794,0.19157194,908.98,907.58,0.69206638]
[1768030732999,0.19157194,908.98,907.59,0.69206638]
[1768030733299,0.19157194,908.98,907.6,0.69206638]
[1768030733498,0.19157194,908.98,907.61,0.69206638]
[1768030733696,0.19157194,908.98,907.62,0.69206638]
[1768030733993,0.19157194,908.98,907.63,0.69206638]
[1768030734199,0.19157194,908.98,907.64,0.69206638]
[1768030734499,0.19157194,908.98,907.65,0.69206638]
[1768030734696,0.19157194,908.98,907.66,0.69206638]
[1768030734900,0.19157194,908.98,907.67,0.69206638]
[1768030735099,0.19157194,908.98,907.53,1.387]
[1768030735298,0.19157194,908.98,907.54,0.69240891]
[1768030735501,0.19157194,908.98,907.55,0.69240891]
[1768030735698,0.19157194,908.98,907.56,0.69240891]
[1768030735902,0.19157194,908.98,907.57,0.69240891]
[1768030736102,0.19157194,908.98,907.58,0.69240891]
[1768030736399,0.19157194,908.98,907.59,0.69240891]
[1768030736602,0.19157194,908.98,907.6,0.69240891]
[1768030736903,0.19157194,908.98,907.61,0.69240891]
[1768030737202,0.19157194,908.98,907.62,0.69240891]
[1768030737403,0.19157194,908.98,907.63,0.69240891]
[1768030737604,0.19157194,908.98,907.64,0.69240891]
[1768030737804,0.19157194,908.98,907.65,0.69240891]
[1768030738004,0.19157194,908.98,907.66,0.69240891]
[1768030738304,0.19157194,908.98,907.67,0.69240891]
[1768030738604,0.19157194,908.98,907.53,1.387]
[1768030738802,0.19157194,908.98,907.54,0.69256539]
[1768030739005,0.19157194,908.98,907.55,0.69256539]
[1768030739205,0.19157194,908.98,907.56,0.69256539]
[1768030739404,0.19157194,908.98,907.57,0.69256539]
[1768030739704,0.19157194,908.98,907.58,0.69256539]
[1768030739904,0.19157194,908.98,907.59,0.69256539]
[1768030740105,0.19157194,908.98,907.6,0.69256539]
[1768030740304,0.19157194,908.98,907.53,1.387]
[1768030740305,0.19157194,908.98,907.61,0.69256539]
[1768030740599,0.19157194,908.98,907.62,0.69256539]
[1768030740806,0.19157194,908.98,907.63,0.69256539]
[1768030741106,0.19157194,908.98,907.64,0.69256539]
[1768030741409,0.19157194,908.98,907.65,0.69256539]
[1768030741602,0.19157194,908.98,907.66,0.69256539]
[1768030741805,0.19157194,908.98,907.67,0.69256539]
[1768030742004,0.19157194,908.98,907.53,1.387]
[1768030742204,0.19157194,908.98,907.54,0.69288836]
[1768030742407,0.19157194,908.98,907.55,0.69288836]
[1768030742604,0.19157194,908.98,907.56,0.69288836]
[1768030742804,0.19157194,908.98,907.57,0.69288836]
[1768030743105,0.19157194,908.98,907.58,0.69288836]
[1768030743304,0.19157194,908.98,907.59,0.69288836]
[1768030743504,0.19157194,908.98,907.6,0.69288836]
[1768030743709,0.19157194,908.98,907.61,0.69288836]
[1768030744008,0.19157194,908.98,907.62,0.69288836]
[1768030744305,0.19157194,908.98,907.63,0.69288836]
[1768030744504,0.19157194,908.98,907.64,0.69288836]
[1768030744708,0.19157194,908.98,907.65,0.69288836]
[1768030744907,0.19157194,908.98,907.66,0.69288836]
[1768030745108,0.19157194,908.98,907.67,0.69288836]
[1768030745308,0.19157194,908.98,907.53,1.387]
[1768030745511,0.19157194,908.98,907.54,0.69290871]
[1768030745711,0.19157194,908.98,907.55,0.69290871]
[1768030746011,0.19157194,908.98,907.56,0.69290871]
[1768030746209,0.19157194,908.98,907.57,0.69290871]
[1768030746507,0.19157194,908.98,907.58,0.69290871]
[1768030746710,0.19157194,908.98,907.59,0.69290871]
[1768030746910,0.19157194,908.98,907.6,0.69290871]
[1768030747209,0.19157194,908.98,907.61,0.69290871]
[1768030747413,0.19157194,908.98,907.62,0.69290871]
[1768030747611,0.19157194,908.98,907.63,0.69290871]
[1768030747810,0.19157194,908.98,907.64,0.69290871]
[1768030748010,0.19157194,908.98,907.65,0.69290871]
[1768030748214,0.19157194,908.98,907.66,0.69290871]
[1768030748515,0.19157194,908.98,907.67,0.69290871]
[1768030748715,0.19157194,908.98,907.68,0.69290871]
[1768030748914,0.19157194,908.98,907.53,1.387]
[1768030749214,0.19157194,908.98,907.54,0.69297487]
[1768030749415,0.19157194,908.98,907.55,0.69297487]
[1768030749611,0.19157194,908.98,907.56,0.69297487]
[1768030749815,0.19157194,908.98,907.57,0.69297487]
[1768030750115,0.19157194,908.98,907.58,0.69297487]
[1768030750411,0.19157194,908.98,907.59,0.69297487]
[1768030750612,0.19157194,908.98,907.6,0.69297487]
[1768030750816,0.19157194,908.98,907.61,0.69297487]
[1768030751016,0.19157194,908.98,907.62,0.69297487]
[1768030751217,0.19157194,908.98,907.63,0.69297487]
[1768030751413,0.19157194,908.98,907.64,0.69297487]
[1768030751614,0.19157194,908.98,907.53,1.387]
[1768030751813,0.19157194,908.98,907.54,0.693286]
[1768030752014,0.19157194,908.98,907.55,0.693286]
[1768030752215,0.19157194,908.98,907.56,0.693286]
[1768030752414,0.19157194,908.98,907.57,0.693286]
[1768030752619,0.19157194,908.98,907.58,0.693286]
[1768030752819,0.19157194,908.98,907.53,1.387]
[1768030753020,0.19157194,908.98,907.54,0.69313412]
[1768030753220,0.19157194,908.98,907.55,0.69313412]
[1768030753419,0.19157194,908.98,907.56,0.69313412]
[1768030753614,0.19157194,908.98,907.57,0.69313412]
[1768030753819,0.19157194,908.98,907.53,1.387]
[1768030754019,0.19157194,908.98,907.54,0.6930222]
[1768030754216,0.19157194,908.98,907.55,0.6930222]
[1768030754418,0.19157194,908.98,907.56,0.6930222]
[1768030754720,0.19157194,908.98,907.57,0.6930222]
[1768030754916,0.19157194,908.98,907.53,1.387]
[1768030755121,0.19157194,908.98,907.54,0.69293274]
[1768030755318,0.19157194,908.98,907.55,0.69293274]
[1768030755517,0.19157194,908.98,907.56,0.69293274]
[1768030755719,0.19157194,908.98,907.53,1.387]
[1768030755916,0.19157194,908.98,907.54,0.69285914]
[1768030756120,0.19157194,908.98,907.53,1.387]